[Event "Late-Titled-Tuesday-Blitz-March-26-2024"]
[Site "Chess.com"]
[Date "2024.03.26"]
[Round "3"]
[White "OriTaichman"]
[Black "baki83"]
[Result "0-1"]
[WhiteElo "2619"]
[BlackElo "2899"]
[TimeControl "180+1"]
[EndTime "14:28:12 PDT"]
[Termination "baki83 won by resignation"]

1. e4 {[%clk 0:03:00.2]} 1... c5 {[%clk 0:02:59]} 2. Nc3 {[%clk 0:02:57.4]} 2...
e6 {[%clk 0:02:58.6]} 3. b3 {[%clk 0:02:53.1]} 3... Nc6 {[%clk 0:02:57.8]} 4.
Bb2 {[%clk 0:02:53]} 4... d5 {[%clk 0:02:57.2]} 5. exd5 {[%clk 0:02:52.8]} 5...
exd5 {[%clk 0:02:57.3]} 6. Bb5 {[%clk 0:02:53.4]} 6... Be6 {[%clk 0:02:56]} 7.
Nf3 {[%clk 0:02:51.2]} 7... Nf6 {[%clk 0:02:55.2]} 8. d4 {[%clk 0:02:46.8]} 8...
Be7 {[%clk 0:02:47.2]} 9. dxc5 {[%clk 0:02:44.3]} 9... Bxc5 {[%clk 0:02:46.2]}
10. Nd4 {[%clk 0:02:41.3]} 10... O-O {[%clk 0:02:33.9]} 11. Bxc6 {[%clk
0:02:09.8]} 11... bxc6 {[%clk 0:02:33.3]} 12. Na4 {[%clk 0:02:08.7]} 12... Bb4+
{[%clk 0:02:24.6]} 13. c3 {[%clk 0:02:04.8]} 13... Bd6 {[%clk 0:02:24.2]} 14.
Nxc6 {[%clk 0:01:39.1]} 14... Qc7 {[%clk 0:01:56.3]} 15. Nd4 {[%clk 0:01:36.8]}
15... Bg4 {[%clk 0:01:50.7]} 16. f3 {[%clk 0:01:36.2]} 16... Rae8+ {[%clk
0:01:48.1]} 17. Kf2 {[%clk 0:01:36.1]} 17... Bxh2 {[%clk 0:01:46.3]} 18. Qd3
{[%clk 0:01:08.4]} 18... Qg3+ {[%clk 0:01:15.3]} 19. Kf1 {[%clk 0:01:05.3]}
19... Ne4 {[%clk 0:01:12.2]} 20. Qe3 {[%clk 0:00:49.2]} 20... Bh3 {[%clk
0:00:52.3]} 21. Rxh2 {[%clk 0:00:34.6]} 21... Qxh2 {[%clk 0:00:51.8]} 22. gxh3
{[%clk 0:00:32.8]} 22... Ng3+ {[%clk 0:00:50.5]} 0-1

[Event "Late-Titled-Tuesday-Blitz-March-26-2024"]
[Site "Chess.com"]
[Date "2024.03.26"]
[Round "3"]
[White "ATM622"]
[Black "OparinGrigoriy"]
[Result "0-1"]
[WhiteElo "2526"]
[BlackElo "2978"]
[TimeControl "180+1"]
[EndTime "14:28:32 PDT"]
[Termination "OparinGrigoriy won on time"]

1. d4 {[%clk 0:03:00.9]} 1... e6 {[%clk 0:02:57.4]} 2. c4 {[%clk 0:03:00.3]}
2... b6 {[%clk 0:02:58]} 3. Nf3 {[%clk 0:02:59.7]} 3... Bb7 {[%clk 0:02:58.5]}
4. g3 {[%clk 0:02:59.7]} 4... Nf6 {[%clk 0:02:58.4]} 5. Bg2 {[%clk 0:03:00]}
5... Bb4+ {[%clk 0:02:58]} 6. Nbd2 {[%clk 0:02:58.4]} 6... O-O {[%clk
0:02:57.5]} 7. O-O {[%clk 0:02:57.8]} 7... d5 {[%clk 0:02:58.1]} 8. Qc2 {[%clk
0:02:56.5]} 8... Qe7 {[%clk 0:02:55.9]} 9. Rd1 {[%clk 0:02:55.4]} 9... Nbd7
{[%clk 0:02:52.9]} 10. a3 {[%clk 0:02:54.8]} 10... Bd6 {[%clk 0:02:52.9]} 11. b4
{[%clk 0:02:49.5]} 11... c5 {[%clk 0:02:53.3]} 12. cxd5 {[%clk 0:02:36.5]} 12...
exd5 {[%clk 0:02:46.8]} 13. bxc5 {[%clk 0:02:31.9]} 13... bxc5 {[%clk
0:02:47.7]} 14. dxc5 {[%clk 0:02:25.1]} 14... Nxc5 {[%clk 0:02:44.6]} 15. Nb3
{[%clk 0:02:10.4]} 15... Nfe4 {[%clk 0:02:24.8]} 16. Be3 {[%clk 0:02:06.8]}
16... Rac8 {[%clk 0:02:20.7]} 17. Nbd4 {[%clk 0:01:57.2]} 17... g6 {[%clk
0:02:15.9]} 18. Rab1 {[%clk 0:01:50]} 18... Ba6 {[%clk 0:02:15.8]} 19. Nb5
{[%clk 0:01:38.8]} 19... Bxb5 {[%clk 0:02:06.6]} 20. Rxb5 {[%clk 0:01:38.8]}
20... Ne6 {[%clk 0:02:07.3]} 21. Qd3 {[%clk 0:01:16.3]} 21... Nc3 {[%clk
0:02:07]} 22. Bh6 {[%clk 0:01:10.6]} 22... Rfd8 {[%clk 0:02:02.3]} 23. h4 {[%clk
0:00:56]} 23... Nxd1 {[%clk 0:01:53.5]} 24. Qxd1 {[%clk 0:00:56.1]} 24... Bxa3
{[%clk 0:01:53.1]} 25. Rxd5 {[%clk 0:00:53.4]} 25... Rxd5 {[%clk 0:01:54]} 26.
Qxd5 {[%clk 0:00:52.3]} 26... Bb2 {[%clk 0:01:50.6]} 27. h5 {[%clk 0:00:46.9]}
27... Rd8 {[%clk 0:01:48.6]} 28. Qb3 {[%clk 0:00:41.7]} 28... Bg7 {[%clk
0:01:49]} 29. Bxg7 {[%clk 0:00:36.7]} 29... Kxg7 {[%clk 0:01:49.9]} 30. Qb2+
{[%clk 0:00:35.7]} 30... Kg8 {[%clk 0:01:43.3]} 31. Qe5 {[%clk 0:00:26.7]} 31...
Qd6 {[%clk 0:01:39.3]} 32. Qf6 {[%clk 0:00:17.6]} 32... Ng7 {[%clk 0:01:38.3]}
33. Qb2 {[%clk 0:00:03.9]} 33... Nxh5 {[%clk 0:01:38.2]} 34. Ng5 {[%clk
0:00:03.7]} 34... Nf6 {[%clk 0:01:37.4]} 35. e4 {[%clk 0:00:03.3]} 35... Qd1+
{[%clk 0:01:35.4]} 36. Bf1 {[%clk 0:00:03.3]} 36... Qd4 {[%clk 0:01:34.5]} 37.
Qe2 {[%clk 0:00:02.6]} 37... h6 {[%clk 0:01:33.2]} 38. Nf3 {[%clk 0:00:01.1]}
38... Qxe4 {[%clk 0:01:33.7]} 0-1

[Event "Late-Titled-Tuesday-Blitz-March-26-2024"]
[Site "Chess.com"]
[Date "2024.03.26"]
[Round "3"]
[White "aghasiyevkamal"]
[Black "stasOR4ik"]
[Result "1-0"]
[WhiteElo "2650"]
[BlackElo "2436"]
[TimeControl "180+1"]
[EndTime "14:28:40 PDT"]
[Termination "aghasiyevkamal won by resignation"]

1. d4 {[%clk 0:03:00.9]} 1... d5 {[%clk 0:02:59.6]} 2. c4 {[%clk 0:03:00.9]}
2... e6 {[%clk 0:03:00.1]} 3. Nf3 {[%clk 0:02:58.4]} 3... Nf6 {[%clk 0:02:59.3]}
4. g3 {[%clk 0:02:58.5]} 4... c6 {[%clk 0:02:58.2]} 5. Bg2 {[%clk 0:02:58.6]}
5... Ne4 {[%clk 0:02:58.5]} 6. O-O {[%clk 0:02:56.7]} 6... Nd7 {[%clk
0:02:57.2]} 7. Nfd2 {[%clk 0:02:47.4]} 7... f5 {[%clk 0:02:55.2]} 8. f3 {[%clk
0:02:46.3]} 8... Nd6 {[%clk 0:02:55.2]} 9. e4 {[%clk 0:02:44.1]} 9... dxc4
{[%clk 0:02:48]} 10. e5 {[%clk 0:02:39.7]} 10... Nb5 {[%clk 0:02:47.2]} 11. Nxc4
{[%clk 0:02:39]} 11... Nb6 {[%clk 0:02:44.8]} 12. Nxb6 {[%clk 0:02:30.1]} 12...
axb6 {[%clk 0:02:40.8]} 13. Be3 {[%clk 0:02:29.1]} 13... Nc7 {[%clk 0:02:40.5]}
14. Nc3 {[%clk 0:02:28.3]} 14... Nd5 {[%clk 0:02:39.1]} 15. Nxd5 {[%clk
0:02:27.7]} 15... exd5 {[%clk 0:02:40]} 16. Qc2 {[%clk 0:02:14.1]} 16... Be7
{[%clk 0:02:36.2]} 17. a3 {[%clk 0:02:07.6]} 17... O-O {[%clk 0:02:34.8]} 18. f4
{[%clk 0:01:51.3]} 18... Be6 {[%clk 0:02:31.2]} 19. Rfd1 {[%clk 0:01:38.7]}
19... Qd7 {[%clk 0:02:30.3]} 20. Qb3 {[%clk 0:01:32.4]} 20... Qc7 {[%clk
0:02:25.4]} 21. Rac1 {[%clk 0:01:30.8]} 21... Ra5 {[%clk 0:02:22.2]} 22. Bd2
{[%clk 0:01:28.6]} 22... Ra6 {[%clk 0:02:07.2]} 23. Bxd5 {[%clk 0:01:24.9]}
23... Bxd5 {[%clk 0:02:07.6]} 24. Qxd5+ {[%clk 0:01:24.4]} 24... Kh8 {[%clk
0:02:08.3]} 25. Qe6 {[%clk 0:01:20.4]} 25... b5 {[%clk 0:01:54.6]} 26. d5 {[%clk
0:01:14.4]} 26... Qb6+ {[%clk 0:01:46.6]} 27. Kg2 {[%clk 0:01:12.4]} 27... Bd8
{[%clk 0:01:23.5]} 28. Bb4 {[%clk 0:01:00]} 28... Qe3 {[%clk 0:01:16.4]} 29. Re1
{[%clk 0:00:49.4]} 29... Qd3 {[%clk 0:00:48]} 30. Bxf8 {[%clk 0:00:47]} 30...
cxd5 {[%clk 0:00:47.9]} 31. Qe8 {[%clk 0:00:39.9]} 31... Qd2+ {[%clk 0:00:38.3]}
32. Kh1 {[%clk 0:00:38.5]} 1-0

[Event "Late-Titled-Tuesday-Blitz-March-26-2024"]
[Site "Chess.com"]
[Date "2024.03.26"]
[Round "3"]
[White "ernestina08chess"]
[Black "WindWhistler11"]
[Result "0-1"]
[WhiteElo "2266"]
[BlackElo "2443"]
[TimeControl "180+1"]
[EndTime "14:28:54 PDT"]
[Termination "WindWhistler11 won by resignation"]

1. e4 {[%clk 0:03:00.9]} 1... e6 {[%clk 0:02:59.1]} 2. d4 {[%clk 0:03:00.6]}
2... d5 {[%clk 0:02:59.4]} 3. e5 {[%clk 0:03:01.2]} 3... c5 {[%clk 0:02:59.3]}
4. c3 {[%clk 0:03:01.9]} 4... Nc6 {[%clk 0:02:59.8]} 5. Nf3 {[%clk 0:03:02.6]}
5... Bd7 {[%clk 0:03:00.4]} 6. Bd3 {[%clk 0:03:02.1]} 6... cxd4 {[%clk
0:02:57.5]} 7. cxd4 {[%clk 0:03:01.6]} 7... Qb6 {[%clk 0:02:58.1]} 8. Be2 {[%clk
0:02:54.7]} 8... Nge7 {[%clk 0:02:55.8]} 9. Na3 {[%clk 0:02:45.8]} 9... Nf5
{[%clk 0:02:53]} 10. Nc2 {[%clk 0:02:46]} 10... Bb4+ {[%clk 0:02:52.5]} 11. Bd2
{[%clk 0:02:41.5]} 11... Bxd2+ {[%clk 0:02:47.9]} 12. Qxd2 {[%clk 0:02:41.7]}
12... Qxb2 {[%clk 0:02:48.3]} 13. O-O {[%clk 0:02:37.1]} 13... Ncxd4 {[%clk
0:02:22.7]} 14. Nfxd4 {[%clk 0:02:34]} 14... Nxd4 {[%clk 0:02:22]} 15. Qxd4
{[%clk 0:02:34.2]} 15... Qxc2 {[%clk 0:02:21.6]} 16. Bd3 {[%clk 0:02:23.9]}
16... Qa4 {[%clk 0:02:21.1]} 17. Qb2 {[%clk 0:02:16.9]} 17... Bc6 {[%clk
0:02:07.1]} 18. f4 {[%clk 0:02:08.6]} 18... O-O {[%clk 0:01:58.1]} 19. Rf3
{[%clk 0:01:58]} 19... f6 {[%clk 0:01:42.6]} 20. exf6 {[%clk 0:01:44.9]} 20...
Rxf6 {[%clk 0:01:41.7]} 21. Raf1 {[%clk 0:01:34.7]} 21... Raf8 {[%clk
0:01:31.4]} 22. f5 {[%clk 0:01:16.5]} 22... d4 {[%clk 0:01:31]} 23. Rg3 {[%clk
0:01:04.9]} 23... e5 {[%clk 0:01:30.5]} 24. Bc2 {[%clk 0:00:59.7]} 24... Qb5
{[%clk 0:01:14.8]} 25. Bb3+ {[%clk 0:00:57.8]} 25... Kh8 {[%clk 0:01:10.2]} 26.
Qd2 {[%clk 0:00:52.8]} 26... Rxf5 {[%clk 0:01:08.1]} 27. Rxf5 {[%clk 0:00:38.8]}
27... Rxf5 {[%clk 0:01:09]} 28. h3 {[%clk 0:00:38.6]} 28... Qf1+ {[%clk
0:01:07.6]} 29. Kh2 {[%clk 0:00:38.7]} 29... Qf4 {[%clk 0:01:03.6]} 30. Qe1
{[%clk 0:00:25.5]} 30... Rg5 {[%clk 0:00:59.8]} 31. Be6 {[%clk 0:00:16.2]} 31...
h5 {[%clk 0:00:55.5]} 0-1

[Event "Late-Titled-Tuesday-Blitz-March-26-2024"]
[Site "Chess.com"]
[Date "2024.03.26"]
[Round "3"]
[White "a_kandil"]
[Black "AlexeiShirov"]
[Result "0-1"]
[WhiteElo "2509"]
[BlackElo "2821"]
[TimeControl "180+1"]
[EndTime "14:28:58 PDT"]
[Termination "AlexeiShirov won by resignation"]

1. e4 {[%clk 0:03:00]} 1... e5 {[%clk 0:02:59.5]} 2. Nf3 {[%clk 0:02:53.8]} 2...
Nc6 {[%clk 0:02:58.6]} 3. Bc4 {[%clk 0:02:52.5]} 3... Bc5 {[%clk 0:02:54.6]} 4.
c3 {[%clk 0:02:51.9]} 4... Nf6 {[%clk 0:02:53.7]} 5. d3 {[%clk 0:02:52.1]} 5...
O-O {[%clk 0:02:52.4]} 6. O-O {[%clk 0:02:52.3]} 6... d5 {[%clk 0:02:51.3]} 7.
exd5 {[%clk 0:02:52.3]} 7... Nxd5 {[%clk 0:02:50.9]} 8. Re1 {[%clk 0:02:51.4]}
8... Bg4 {[%clk 0:02:44.9]} 9. Nbd2 {[%clk 0:02:51]} 9... Nb6 {[%clk 0:02:30.1]}
10. h3 {[%clk 0:02:33.2]} 10... Bh5 {[%clk 0:02:29]} 11. Bb3 {[%clk 0:02:32.1]}
11... Qxd3 {[%clk 0:02:27.8]} 12. Nxe5 {[%clk 0:02:31.9]} 12... Qf5 {[%clk
0:02:27.1]} 13. Nef3 {[%clk 0:02:13.5]} 13... Rad8 {[%clk 0:02:26.3]} 14. Qe2
{[%clk 0:02:10.9]} 14... Nd5 {[%clk 0:02:18.2]} 15. Qb5 {[%clk 0:02:09.6]} 15...
Nf4 {[%clk 0:02:11.5]} 16. Qc4 {[%clk 0:01:08.3]} 16... Rxd2 {[%clk 0:01:32.4]}
17. Bxd2 {[%clk 0:01:04.1]} 17... Nxh3+ {[%clk 0:01:31.1]} 18. gxh3 {[%clk
0:01:01.9]} 18... Bxf3 {[%clk 0:01:29.8]} 19. Qh4 {[%clk 0:00:57]} 19... h6
{[%clk 0:01:16.6]} 20. Bf4 {[%clk 0:00:28.8]} 20... g5 {[%clk 0:01:09.9]} 21.
Qxh6 {[%clk 0:00:24.8]} 21... gxf4 {[%clk 0:01:07.8]} 22. Kh2 {[%clk 0:00:23.7]}
22... Bxf2 {[%clk 0:01:05.4]} 23. Rg1+ {[%clk 0:00:21.5]} 23... Bg3+ {[%clk
0:01:04.5]} 24. Rxg3+ {[%clk 0:00:21]} 24... fxg3+ {[%clk 0:01:03.1]} 25. Kxg3
{[%clk 0:00:21.7]} 25... Bh5 {[%clk 0:00:51.3]} 26. Rg1 {[%clk 0:00:20.3]} 26...
Ne5 {[%clk 0:00:48.4]} 27. Kh2+ {[%clk 0:00:18.2]} 27... Bg6 {[%clk 0:00:47.5]}
28. Rg5 {[%clk 0:00:14.9]} 28... Nf3+ {[%clk 0:00:46.2]} 0-1

[Event "Late-Titled-Tuesday-Blitz-March-26-2024"]
[Site "Chess.com"]
[Date "2024.03.26"]
[Round "3"]
[White "maciek_92"]
[Black "Matrix3x3a"]
[Result "1-0"]
[WhiteElo "2879"]
[BlackElo "2604"]
[TimeControl "180+1"]
[EndTime "14:29:03 PDT"]
[Termination "maciek_92 won by resignation"]

1. c4 {[%clk 0:03:00.9]} 1... Nf6 {[%clk 0:02:59.4]} 2. Nc3 {[%clk 0:03:01.3]}
2... c5 {[%clk 0:02:58.6]} 3. g3 {[%clk 0:03:01.2]} 3... d5 {[%clk 0:02:57]} 4.
cxd5 {[%clk 0:03:02.1]} 4... Nxd5 {[%clk 0:02:57.2]} 5. Bg2 {[%clk 0:03:02.8]}
5... Nc7 {[%clk 0:02:57]} 6. Nf3 {[%clk 0:03:02.1]} 6... Nc6 {[%clk 0:02:57]} 7.
O-O {[%clk 0:03:02.8]} 7... e5 {[%clk 0:02:56.8]} 8. d3 {[%clk 0:03:03.5]} 8...
Be7 {[%clk 0:02:56.2]} 9. Nd2 {[%clk 0:03:04.2]} 9... O-O {[%clk 0:02:54.8]} 10.
a4 {[%clk 0:03:04.9]} 10... Be6 {[%clk 0:02:54.5]} 11. a5 {[%clk 0:03:02.8]}
11... Qd7 {[%clk 0:02:50.4]} 12. Nc4 {[%clk 0:03:02.6]} 12... f6 {[%clk
0:02:49.5]} 13. f4 {[%clk 0:02:58.7]} 13... Nd5 {[%clk 0:02:09.4]} 14. f5 {[%clk
0:02:49.2]} 14... Bf7 {[%clk 0:02:08.6]} 15. Ne4 {[%clk 0:02:48.8]} 15... Rfd8
{[%clk 0:01:58.6]} 16. g4 {[%clk 0:02:48.3]} 16... b5 {[%clk 0:01:55.1]} 17.
axb6 {[%clk 0:02:41.8]} 17... axb6 {[%clk 0:01:53.4]} 18. Rxa8 {[%clk
0:02:42.4]} 18... Rxa8 {[%clk 0:01:52.7]} 19. g5 {[%clk 0:02:43.3]} 19... b5
{[%clk 0:01:49.6]} 20. gxf6 {[%clk 0:02:40.8]} 20... gxf6 {[%clk 0:01:39.1]} 21.
Ne3 {[%clk 0:02:40]} 21... Kh8 {[%clk 0:01:36.1]} 22. Kh1 {[%clk 0:02:37.4]}
22... Rg8 {[%clk 0:01:33.6]} 23. Ng3 {[%clk 0:02:35]} 23... Nxe3 {[%clk
0:01:27.9]} 24. Bxe3 {[%clk 0:02:35.9]} 24... Bd5 {[%clk 0:01:27]} 25. Bxd5
{[%clk 0:02:29.2]} 25... Qxd5+ {[%clk 0:01:27.5]} 26. Ne4 {[%clk 0:02:29.2]}
26... c4 {[%clk 0:01:23.6]} 27. Rg1 {[%clk 0:02:25]} 27... Rxg1+ {[%clk
0:01:19.8]} 28. Kxg1 {[%clk 0:02:25.9]} 28... cxd3 {[%clk 0:01:18.9]} 29. Qxd3
{[%clk 0:02:24.3]} 29... Qxd3 {[%clk 0:01:18.5]} 30. exd3 {[%clk 0:02:25.2]}
30... Kg7 {[%clk 0:01:18.1]} 31. Kf2 {[%clk 0:02:24.6]} 31... Kf7 {[%clk
0:01:14.6]} 32. Nc3 {[%clk 0:02:15.8]} 32... b4 {[%clk 0:01:11.4]} 33. Nd5
{[%clk 0:02:15.7]} 33... Bd6 {[%clk 0:01:10]} 34. Kf3 {[%clk 0:02:12.9]} 34...
Na5 {[%clk 0:01:01.7]} 35. Ke4 {[%clk 0:02:10.9]} 35... Nb3 {[%clk 0:01:02.1]}
36. h3 {[%clk 0:02:10]} 36... Bc5 {[%clk 0:00:56.4]} 37. Kf3 {[%clk 0:01:54.7]}
37... Bxe3 {[%clk 0:00:55.8]} 38. Kxe3 {[%clk 0:01:54.7]} 38... Nc5 {[%clk
0:00:50.4]} 39. Nxb4 {[%clk 0:01:52.7]} 39... Na4 {[%clk 0:00:49.5]} 40. d4
{[%clk 0:01:34.7]} 40... Nxb2 {[%clk 0:00:46.1]} 41. d5 {[%clk 0:01:32.4]} 41...
Nc4+ {[%clk 0:00:45.6]} 42. Kf3 {[%clk 0:01:31.4]} 42... Nd6 {[%clk 0:00:45.6]}
43. Kg4 {[%clk 0:01:31.2]} 43... h5+ {[%clk 0:00:45.7]} 44. Kxh5 {[%clk
0:01:31.5]} 44... Nxf5 {[%clk 0:00:45.6]} 45. Kg4 {[%clk 0:01:32.3]} 45... Nd6
{[%clk 0:00:31.7]} 46. Nc6 {[%clk 0:01:32.5]} 46... Ke8 {[%clk 0:00:27.7]} 47.
h4 {[%clk 0:01:32.2]} 47... Kd7 {[%clk 0:00:27.8]} 48. h5 {[%clk 0:01:30.7]}
48... Nf7 {[%clk 0:00:27.9]} 49. Kf5 {[%clk 0:01:30.5]} 49... Kd6 {[%clk
0:00:27.9]} 50. Nb4 {[%clk 0:01:31]} 50... Kc5 {[%clk 0:00:26.3]} 51. Kg6 {[%clk
0:01:30.1]} 51... Nh8+ {[%clk 0:00:24.7]} 52. Kg7 {[%clk 0:01:30.1]} 52... e4
{[%clk 0:00:22.1]} 53. Nc2 {[%clk 0:01:27.7]} 53... Kxd5 {[%clk 0:00:20.2]} 54.
Kxh8 {[%clk 0:01:28.4]} 54... f5 {[%clk 0:00:20.7]} 55. Kg7 {[%clk 0:01:29.2]}
55... f4 {[%clk 0:00:21]} 56. h6 {[%clk 0:01:29.4]} 56... e3 {[%clk 0:00:21.3]}
57. h7 {[%clk 0:01:29.6]} 1-0

[Event "Late-Titled-Tuesday-Blitz-March-26-2024"]
[Site "Chess.com"]
[Date "2024.03.26"]
[Round "3"]
[White "Alexander_Donchenko"]
[Black "Payyappat"]
[Result "1-0"]
[WhiteElo "2873"]
[BlackElo "2513"]
[TimeControl "180+1"]
[EndTime "14:29:04 PDT"]
[Termination "Alexander_Donchenko won by resignation"]

1. e4 {[%clk 0:02:59.5]} 1... c6 {[%clk 0:02:59]} 2. Nf3 {[%clk 0:02:57.5]} 2...
d5 {[%clk 0:02:59.9]} 3. d3 {[%clk 0:02:58]} 3... dxe4 {[%clk 0:02:57.4]} 4.
dxe4 {[%clk 0:02:58.9]} 4... Qxd1+ {[%clk 0:02:58.2]} 5. Kxd1 {[%clk 0:02:59.7]}
5... Bg4 {[%clk 0:02:58.2]} 6. Nd2 {[%clk 0:02:59.6]} 6... Nd7 {[%clk
0:02:58.4]} 7. h3 {[%clk 0:02:59.5]} 7... Bxf3+ {[%clk 0:02:58.1]} 8. Nxf3
{[%clk 0:03:00.4]} 8... O-O-O {[%clk 0:02:58.1]} 9. Bd3 {[%clk 0:02:58.4]} 9...
Ngf6 {[%clk 0:02:57.5]} 10. Ke2 {[%clk 0:02:58.1]} 10... e5 {[%clk 0:02:56.6]}
11. c3 {[%clk 0:02:57.2]} 11... Bc5 {[%clk 0:02:55.5]} 12. b4 {[%clk 0:02:54.4]}
12... Bb6 {[%clk 0:02:54.7]} 13. a4 {[%clk 0:02:54.4]} 13... a5 {[%clk
0:02:54.2]} 14. Bg5 {[%clk 0:02:50.2]} 14... h6 {[%clk 0:02:48.5]} 15. Bxf6
{[%clk 0:02:49.9]} 15... gxf6 {[%clk 0:02:49.4]} 16. Nh4 {[%clk 0:02:46.9]}
16... Nf8 {[%clk 0:02:46.3]} 17. Nf5 {[%clk 0:02:38.8]} 17... Ne6 {[%clk
0:02:45.6]} 18. g3 {[%clk 0:02:36.8]} 18... axb4 {[%clk 0:02:42.9]} 19. cxb4
{[%clk 0:02:30.9]} 19... Nd4+ {[%clk 0:02:42.8]} 20. Nxd4 {[%clk 0:02:31]} 20...
Rxd4 {[%clk 0:02:43.2]} 21. a5 {[%clk 0:02:27.3]} 21... Ba7 {[%clk 0:02:39.6]}
22. Rhb1 {[%clk 0:02:25.2]} 22... Rhd8 {[%clk 0:02:38]} 23. Rb3 {[%clk
0:02:22.7]} 23... f5 {[%clk 0:02:35.6]} 24. f3 {[%clk 0:02:14.8]} 24... Rg8
{[%clk 0:02:33.6]} 25. g4 {[%clk 0:02:06.8]} 25... fxg4 {[%clk 0:02:32.5]} 26.
hxg4 {[%clk 0:02:07.1]} 26... h5 {[%clk 0:02:32.2]} 27. b5 {[%clk 0:01:54]}
27... hxg4 {[%clk 0:02:12.8]} 28. b6 {[%clk 0:01:50.5]} 28... Bb8 {[%clk
0:02:11.3]} 29. a6 {[%clk 0:01:46.4]} 29... gxf3+ {[%clk 0:02:06.4]} 30. Kxf3
{[%clk 0:01:41.4]} 30... bxa6 {[%clk 0:02:01.8]} 31. Bxa6+ {[%clk 0:01:42.3]}
31... Kd7 {[%clk 0:02:01.2]} 32. Rh1 {[%clk 0:01:38.9]} 32... c5 {[%clk
0:01:54.5]} 33. Bb5+ {[%clk 0:01:35.6]} 33... Ke6 {[%clk 0:01:53]} 34. Bc6
{[%clk 0:01:26.5]} 34... Bd6 {[%clk 0:01:45.4]} 35. Bd5+ {[%clk 0:01:24]} 35...
Kf6 {[%clk 0:01:35.6]} 36. b7 {[%clk 0:01:19.2]} 36... Rb4 {[%clk 0:01:16]} 37.
Ra3 {[%clk 0:01:13.2]} 37... c4 {[%clk 0:01:12]} 38. Rc3 {[%clk 0:01:03.4]}
38... Bc5 {[%clk 0:00:39.1]} 39. Rh7 {[%clk 0:00:59.3]} 39... Rb2 {[%clk
0:00:22.9]} 40. Rxf7+ {[%clk 0:00:58.6]} 40... Kg6 {[%clk 0:00:23.1]} 41. Rc7
{[%clk 0:00:52.7]} 41... Rf2+ {[%clk 0:00:22.8]} 42. Kg3 {[%clk 0:00:52.9]}
42... Kh6+ {[%clk 0:00:22]} 43. Bxg8 {[%clk 0:00:52.5]} 1-0

[Event "Late-Titled-Tuesday-Blitz-March-26-2024"]
[Site "Chess.com"]
[Date "2024.03.26"]
[Round "3"]
[White "Gentlejimmy7"]
[Black "sergiochess83"]
[Result "1/2-1/2"]
[WhiteElo "2684"]
[BlackElo "2984"]
[TimeControl "180+1"]
[EndTime "14:29:05 PDT"]
[Termination "Game drawn by repetition"]

1. c4 {[%clk 0:03:00.9]} 1... e5 {[%clk 0:02:53.6]} 2. Nc3 {[%clk 0:02:59.3]}
2... Nf6 {[%clk 0:02:53.7]} 3. g3 {[%clk 0:02:51]} 3... d5 {[%clk 0:02:53.3]} 4.
cxd5 {[%clk 0:02:50.8]} 4... Nxd5 {[%clk 0:02:54.2]} 5. Bg2 {[%clk 0:02:51]}
5... Nxc3 {[%clk 0:02:53.3]} 6. dxc3 {[%clk 0:02:48]} 6... Qxd1+ {[%clk
0:02:50.9]} 7. Kxd1 {[%clk 0:02:48.9]} 7... Bc5 {[%clk 0:02:43]} 8. e3 {[%clk
0:02:28]} 8... c6 {[%clk 0:02:40.6]} 9. Nf3 {[%clk 0:02:16.2]} 9... Nd7 {[%clk
0:02:19.9]} 10. Nd2 {[%clk 0:02:15.5]} 10... a5 {[%clk 0:01:50]} 11. Ne4 {[%clk
0:02:06.7]} 11... Be7 {[%clk 0:01:47.7]} 12. f3 {[%clk 0:02:04.6]} 12... Nb6
{[%clk 0:01:36.8]} 13. Nf2 {[%clk 0:02:03.7]} 13... Be6 {[%clk 0:01:34.1]} 14.
Kc2 {[%clk 0:02:02.8]} 14... a4 {[%clk 0:01:31.5]} 15. e4 {[%clk 0:01:58.6]}
15... f6 {[%clk 0:01:24.7]} 16. Bh3 {[%clk 0:01:57.4]} 16... Kf7 {[%clk
0:01:23.3]} 17. Bxe6+ {[%clk 0:01:56.6]} 17... Kxe6 {[%clk 0:01:23.6]} 18. Be3
{[%clk 0:01:52.1]} 18... Nc4 {[%clk 0:01:23.1]} 19. Rhe1 {[%clk 0:01:48]} 19...
Rhd8 {[%clk 0:01:14.5]} 20. Nd3 {[%clk 0:01:36.8]} 20... Nxe3+ {[%clk
0:01:03.1]} 21. Rxe3 {[%clk 0:01:36.9]} 21... b5 {[%clk 0:01:04]} 22. Rd1 {[%clk
0:01:28.2]} 22... g6 {[%clk 0:01:01.8]} 23. Re2 {[%clk 0:01:28.1]} 23... Rd7
{[%clk 0:00:48.8]} 24. Red2 {[%clk 0:01:24]} 24... Rad8 {[%clk 0:00:48.6]} 25.
Nb4 {[%clk 0:01:23.5]} 25... Bxb4 {[%clk 0:00:24.7]} 26. Rxd7 {[%clk 0:01:22.9]}
26... Rxd7 {[%clk 0:00:24.6]} 27. Rxd7 {[%clk 0:01:23.8]} 27... Kxd7 {[%clk
0:00:25.1]} 28. cxb4 {[%clk 0:01:24.3]} 28... Kd6 {[%clk 0:00:23.8]} 29. a3
{[%clk 0:01:08.9]} 29... c5 {[%clk 0:00:20.7]} 30. Kd3 {[%clk 0:01:08.8]} 30...
c4+ {[%clk 0:00:10.6]} 31. Ke3 {[%clk 0:01:07.8]} 31... Ke6 {[%clk 0:00:09.6]}
32. g4 {[%clk 0:00:57.8]} 32... g5 {[%clk 0:00:03.4]} 33. h3 {[%clk 0:00:55.9]}
33... h6 {[%clk 0:00:04.1]} 34. Kd2 {[%clk 0:00:54.8]} 34... Kd6 {[%clk
0:00:04.7]} 35. Ke3 {[%clk 0:00:53.3]} 35... Ke6 {[%clk 0:00:05.4]} 36. Kd2
{[%clk 0:00:53.2]} 36... Kd6 {[%clk 0:00:06.3]} 37. Ke3 {[%clk 0:00:53.5]} 37...
Ke6 {[%clk 0:00:07]} 1/2-1/2